fUSD/lending_fUSD_20250617
["ID","MTS","AMOUNT","RATE_DAILY","PERIOD"]
[366225913,1750135852282,-490.0,0.0001667,2]
[366225914,1750135852297,-490.0,0.0001667,2]
[366225915,1750135852307,-490.0,0.0001667,2]
[366225916,1750135852318,-386.82969145,0.0001667,2]
[366225917,1750135852329,-490.0,0.0001667,2]
[366225918,1750135852339,-151.0,0.0001667,2]
[366225919,1750135852349,-151.0,0.0001667,2]
[366225920,1750135852359,-579.27,0.0001667,2]
[366225921,1750135852371,-151.0,0.0001667,2]
[366225922,1750135852381,-7196.11,0.0001667,2]
[366225923,1750135852391,-490.0,0.0001667,2]
[366225924,1750135852401,-151.0,0.0001667,2]
[366225925,1750135852411,-151.0,0.0001667,2]
[366225926,1750135852421,-151.0,0.0001667,2]
[366225927,1750135852431,-490.0,0.0001667,2]
[366225928,1750135852441,-490.0,0.0001667,2]
[366225929,1750135852451,-490.0,0.0001667,2]
[366225930,1750135852461,-153.038484,0.0001667,2]
[366225931,1750135852471,-490.0,0.0001667,2]
[366225932,1750135852481,-2176.32,0.0001667,2]
[366225933,1750135852491,-490.0,0.0001667,2]
[366225934,1750135852502,-490.0,0.0001667,2]
[366225935,1750135852511,-1020.01,0.0001667,2]
[366225936,1750135852521,-490.0,0.0001667,2]
[366225937,1750135852531,-490.0,0.0001667,2]
[366225938,1750135852541,-490.0,0.0001667,2]
[366225939,1750135852551,-670.1,0.0001667,2]
[366225940,1750135852561,-615.98581515,0.0001667,2]
[366225941,1750135852570,-2511.25,0.0001667,2]
[366225942,1750135852582,-490.0,0.0001667,2]
[366225943,1750135852592,-490.0,0.0001667,2]
[366225944,1750135852603,-490.0,0.0001667,2]
[366225945,1750135852613,-490.0,0.0001667,2]
[366225946,1750135852622,-1159.52,0.0001667,2]
[366225947,1750135852632,-490.0,0.0001667,2]
[366225948,1750135852642,-490.0,0.0001667,2]
[366225949,1750135852651,-490.0,0.0001667,2]
[366225950,1750135852661,-500.0,0.0001667,2]
[366225951,1750135852671,-1323.63,0.0001667,2]
[366225952,1750135852680,-490.0,0.0001667,2]
[366225953,1750135852690,-490.0,0.0001667,2]
[366225954,1750135852700,-490.0,0.0001667,2]
[366225955,1750135852710,-490.0,0.0001667,2]
[366225956,1750135852719,-490.0,0.0001667,2]
[366225957,1750135852729,-490.0,0.0001667,2]
[366225958,1750135852738,-1052.69,0.0001667,2]
[366225959,1750135852748,-490.0,0.0001667,2]
[366225960,1750135852757,-470.0,0.0001667,2]
[366225961,1750135852767,-1228.92,0.0001667,2]
[366225962,1750135852777,-490.0,0.0001667,2]
[366225963,1750135852787,-490.0,0.0001667,2]
[366225964,1750135852797,-685.73,0.0001667,2]
[366225965,1750135852806,-490.0,0.0001667,2]
[366225966,1750135852816,-184.55564891,0.0001667,2]
[366225967,1750135852825,-3195.89,0.0001667,2]
[366225968,1750135852835,-504.77,0.0001667,2]
[366225969,1750135852846,-490.0,0.0001667,2]
[366225970,1750135852855,-490.0,0.0001667,2]
[366225971,1750135852865,-642.32,0.0001667,2]
[366225972,1750135852874,-490.0,0.0001667,2]
[366225973,1750135852884,-490.0,0.0001667,2]
[366225974,1750135852893,-490.0,0.0001667,2]
[366225975,1750135852903,-490.0,0.0001667,2]
[366225976,1750135852913,-151.0,0.0001667,2]
[366225977,1750135852922,-490.0,0.0001667,2]
[366225978,1750135852932,-151.0,0.0001667,2]
[366225979,1750135852942,-753.75,0.0001667,2]
[366225980,1750135852952,-152.177471,0.0001667,2]
[366225981,1750135852962,-151.0,0.0001667,2]
[366225982,1750135852972,-151.0,0.0001667,2]
[366225983,1750135852982,-151.0,0.0001667,2]
[366225984,1750135852991,-176.672159,0.0001667,2]
[366225985,1750135853001,-151.0,0.0001667,2]
[366225986,1750135853011,-176.672159,0.0001667,2]
[366225987,1750135853020,-490.0,0.0001667,2]
[366225988,1750135853030,-490.0,0.0001667,2]
[366225989,1750135853039,-490.0,0.0001667,2]
[366225990,1750135853049,-176.672159,0.0001667,2]
[366225991,1750135853059,-176.672159,0.0001667,2]
[366225992,1750135853068,-330.39685885,0.0001667,2]
[366225993,1750135853077,-3164.52,0.0001667,2]
[366225994,1750135853087,-2814.99,0.0001667,2]
[366225995,1750135853097,-490.0,0.0001667,2]
[366225996,1750135853106,-490.0,0.0001667,2]
[366225997,1750135853116,-490.0,0.0001667,2]
[366225998,1750135853126,-775.45,0.0001667,2]
[366225999,1750135853136,-1986.65,0.0001667,2]
[366226000,1750135853145,-491.7476829,0.0001667,2]
[366226001,1750135853154,-490.0,0.0001667,2]
[366226002,1750135853164,-151.0,0.0001667,2]
[366226003,1750135853174,-151.0,0.0001667,2]
[366226004,1750135853183,-151.0,0.0001667,2]
[366226005,1750135853194,-151.0,0.0001667,2]
[366226006,1750135853204,-490.0,0.0001667,2]
[366226007,1750135853214,-490.0,0.0001667,2]
[366226008,1750135853223,-490.0,0.0001667,2]
[366226009,1750135853233,-568.45,0.0001667,2]
[366226010,1750135853242,-576.25,0.0001667,2]
[366226011,1750135853252,-490.0,0.0001667,2]
[366226012,1750135853261,-1000.0,0.0001667,2]
[366226013,1750135853272,-490.0,0.0001667,2]
[366226014,1750135853281,-151.0,0.0001667,2]
[366226015,1750135853294,-151.0,0.0001667,2]
[366226016,1750135853303,-151.0,0.0001667,2]
[366226017,1750135853313,-151.0,0.0001667,2]
[366226018,1750135853322,-490.0,0.0001667,2]
[366226019,1750135853332,-2371.58,0.0001667,2]
[366226020,1750135853342,-490.0,0.0001667,2]
[366226021,1750135853352,-151.0,0.0001667,2]
[366226022,1750135853362,-151.0,0.0001667,2]
[366226023,1750135853373,-151.0,0.0001667,2]
[366226024,1750135853384,-151.0,0.0001667,2]
[366226025,1750135853394,-490.0,0.0001667,2]
[366226026,1750135853404,-490.0,0.0001667,2]
[366226027,1750135853414,-490.0,0.0001667,2]
[366226028,1750135853424,-628.14,0.0001667,2]
[366226029,1750135853435,-437.53,0.0001667,2]
[366226030,1750135853446,-490.0,0.0001667,2]
[366226031,1750135853456,-490.0,0.0001667,2]
[366226032,1750135853466,-490.0,0.0001667,2]
[366226033,1750135853476,-490.0,0.0001667,2]
[366226034,1750135853485,-490.0,0.0001667,2]
[366226035,1750135853495,-490.0,0.0001667,2]
[366226036,1750135853505,-490.0,0.0001667,2]
[366226037,1750135853514,-498.2778879,0.0001667,2]
[366226038,1750135853525,-151.0,0.0001667,2]
[366226039,1750135853616,-490.0,0.0001667,2]
[366226040,1750135853626,-6751.83,0.0001667,2]
[366226041,1750135853635,-469.71,0.0001667,2]
[366226042,1750135853645,-151.0,0.0001667,2]
[366226043,1750135853654,-151.0,0.0001667,2]
[366226044,1750135853663,-151.0,0.0001667,2]
[366226045,1750135853673,-151.0,0.0001667,2]
[366226046,1750135853682,-151.0,0.0001667,2]
[366226047,1750135853693,-151.0,0.0001667,2]
[366226048,1750135853702,-151.0,0.0001667,2]
[366226049,1750135853711,-233.371759,0.0001667,2]
[366226050,1750135853721,-490.0,0.0001667,2]
[366226051,1750135853730,-491.87005275,0.0001667,2]
[366226052,1750135853739,-490.0,0.0001667,2]
[366226053,1750135853749,-490.0,0.0001667,2]
[366226054,1750135853758,-615.96,0.0001667,2]
[366226055,1750135853768,-272.60985495,0.0001667,2]
[366226056,1750135853777,-490.0,0.0001667,2]
[366226057,1750135853787,-399.17722124,0.0001667,2]
[366226058,1750135853796,-490.0,0.0001667,2]
[366226059,1750135853806,-490.0,0.0001667,2]
[366226060,1750135853817,-490.0,0.0001667,2]
[366226061,1750135853827,-490.0,0.0001667,2]
[366226062,1750135853836,-2391.44,0.0001667,2]
[366226063,1750135853845,-490.0,0.0001667,2]
[366226064,1750135853855,-490.0,0.0001667,2]
[366226065,1750135853864,-804.16,0.0001667,2]
[366226066,1750135853874,-490.0,0.0001667,2]
[366226067,1750135853883,-490.0,0.0001667,2]
[366226068,1750135853893,-490.0,0.0001667,2]
[366226069,1750135853902,-559.2,0.0001667,2]
[366226070,1750135853911,-255.95,0.0001667,2]
[366226071,1750135853920,-490.0,0.0001667,2]
[366226072,1750135853930,-490.0,0.0001667,2]
[366226073,1750135853940,-490.0,0.0001667,2]
[366226074,1750135853949,-490.0,0.0001667,2]
[366226075,1750135853959,-490.0,0.0001667,2]
[366226076,1750135853968,-490.0,0.0001667,2]
[366226077,1750135853977,-511.03593,0.0001667,2]
[366226078,1750135853987,-511.03593,0.0001667,2]
[366226079,1750135853996,-511.03593,0.0001667,2]
[366226080,1750135854006,-511.03593,0.0001667,2]
[366226081,1750135854016,-730.17,0.0001667,2]
[366226082,1750135854025,-490.0,0.0001667,2]
[366226083,1750135854041,-511.03593,0.0001667,2]
[366226084,1750135854051,-511.03593,0.0001667,2]
[366226085,1750135854060,-511.03593,0.0001667,2]
[366226086,1750135854070,-360.9,0.0001667,2]
[366226087,1750135854079,-511.03593,0.0001667,2]
[366226088,1750135854089,-490.0,0.0001667,2]
[366226089,1750135854099,-490.0,0.0001667,2]
[366226090,1750135854108,-490.0,0.0001667,2]
[366226091,1750135854118,-206.26148,0.0001667,2]
[366226092,1750135854128,-206.26148,0.0001667,2]
[366226093,1750135854137,-206.26148,0.0001667,2]
[366226094,1750135854147,-206.26148,0.0001667,2]
[366226095,1750135854156,-207.68,0.0001667,2]
[366226096,1750135854165,-151.0,0.00016672,2]
[366226097,1750135854174,-578.76182707,0.0001668,2]
[366226098,1750135854184,-226.52464,0.0001668,2]
[366226099,1750135854195,-1169.7885028,0.00016693,2]
[366226100,1750135854205,-167.95067505,0.000167,2]
[366226101,1750135854215,-150.0,0.00016703,2]
[366226102,1750135854224,-154.02835638,0.00016706,2]
[366226103,1750135854234,-150.0,0.00016711,2]
[366226104,1750135854244,-204.50042987,0.00016713,2]
[366226105,1750135854254,-578.76182707,0.00016717,2]
[366226106,1750135854263,-150.0,0.00016725,2]
[366226107,1750135854272,-1169.7885028,0.00016728,2]
[366226108,1750135854282,-490.0,0.00016728,2]
[366226109,1750135854292,-490.0,0.00016728,2]
[366226110,1750135854302,-490.0,0.00016728,2]
[366226111,1750135854311,-490.0,0.00016728,2]
[366226112,1750135854321,-490.0,0.00016728,2]
[366226113,1750135854331,-424.81268262,0.00016728,2]
[366226114,1750135854341,-490.0,0.00016728,2]
[366226115,1750135854350,-490.0,0.00016728,2]
[366226116,1750135854360,-490.0,0.00016728,2]
[366226117,1750135854372,-150.0,0.00016732,2]
[366226118,1750135854382,-150.0,0.00016736,2]
[366226119,1750135854392,-218.0,0.0001674,2]
[366226120,1750135854402,-250.572244,0.00016745,2]
[366226121,1750135854412,-151.0,0.00016745,2]
[366226122,1750135854422,-151.0,0.00016745,2]
[366226123,1750135854431,-151.0,0.00016745,2]
[366226124,1750135854442,-207.200911,0.00016745,2]
[366226125,1750135854452,-207.200911,0.00016745,2]
[366226126,1750135854463,-176.672159,0.00016745,2]
[366226127,1750135854472,-176.672159,0.00016745,2]
[366226128,1750135854483,-150.0,0.00016747,2]
[366226129,1750135854494,-150.0,0.00016747,2]
[366226130,1750135854504,-168.0,0.00016749,2]
[366226131,1750135854514,-150.0,0.00016751,2]
[366226132,1750135854525,-578.76182707,0.00016753,2]
[366226133,1750135854534,-150.0,0.00016757,2]
[366226134,1750135854544,-1169.7885028,0.00016762,2]
[366226135,1750135854554,-168.0,0.00016762,2]
[366226136,1750135854563,-2199.466,0.00016764,2]
[366226137,1750135854572,-150.0,0.00016769,2]
[366226138,1750135854582,-150.0,0.0001677,2]
[366226139,1750135854591,-150.0,0.00016774,2]
[366226140,1750135854601,-150.0,0.00016778,2]
[366226141,1750135854610,-150.0,0.00016779,2]
[366226142,1750135854620,-150.0,0.00016787,2]
[366226143,1750135854629,-931.0,0.00016788,2]
[366226144,1750135854639,-578.76182707,0.0001679,2]
[366226145,1750135854649,-150.0,0.00016791,2]
[366226146,1750135854658,-150.0,0.00016791,2]
[366226147,1750135854668,-490.0,0.00016793,2]
[366226148,1750135854677,-547.27,0.00016793,2]
[366226149,1750135854687,-490.0,0.00016793,2]
[366226150,1750135854698,-529.62,0.00016793,2]
[366226151,1750135854708,-490.0,0.00016793,2]
[366226152,1750135854717,-583.72,0.00016793,2]
[366226153,1750135854727,-732.86,0.00016793,2]
[366226154,1750135854737,-604.0,0.00016793,2]
[366226155,1750135854746,-649.83,0.00016793,2]
[366226156,1750135854756,-646.75,0.00016793,2]
[366226157,1750135854766,-1244.37,0.00016793,2]
[366226158,1750135854776,-2868.93,0.00016793,2]
[366226159,1750135854785,-1613.86,0.00016793,2]
[366226160,1750135854795,-490.0,0.00016793,2]
[366226161,1750135854804,-151.0,0.00016793,2]
[366226162,1750135854818,-540.14,0.00016793,2]
[366226163,1750135854827,-1208.13,0.00016793,2]
[366226164,1750135854837,-490.0,0.00016793,2]
[366226165,1750135854847,-490.0,0.00016793,2]
[366226166,1750135854857,-490.0,0.00016793,2]
[366226167,1750135854866,-151.0,0.00016793,2]
[366226168,1750135854876,-490.0,0.00016793,2]
[366226169,1750135854886,-490.0,0.00016793,2]
[366226170,1750135854896,-984.96,0.00016793,2]
[366226171,1750135854906,-490.0,0.00016793,2]
[366226172,1750135854916,-809.93,0.00016793,2]
[366226173,1750135854926,-490.0,0.00016793,2]
[366226174,1750135854936,-151.0,0.00016793,2]
[366226175,1750135854951,-151.0,0.00016793,2]
[366226176,1750135854962,-947.33,0.00016793,2]
[366226177,1750135854972,-1309.35,0.00016793,2]
[366226178,1750135854982,-1394.77,0.00016793,2]
[366226179,1750135854991,-1642.34,0.00016793,2]
[366226180,1750135855001,-1081.57,0.00016793,2]
[366226181,1750135855010,-785.28,0.00016793,2]
[366226182,1750135855020,-561.6,0.00016793,2]
[366226183,1750135855030,-1910.46,0.00016793,2]
[366226184,1750135855040,-490.0,0.00016793,2]
[366226185,1750135855049,-490.0,0.00016793,2]
[366226186,1750135855059,-797.22,0.00016793,2]
[366226187,1750135855068,-715.47,0.00016793,2]
[366226188,1750135855077,-232.66,0.00016793,2]
[366226189,1750135855087,-490.0,0.00016793,2]
[366226190,1750135855096,-511.03593,0.00016793,2]
[366226191,1750135855106,-942.34,0.00016793,2]
[366226192,1750135855116,-511.03593,0.00016793,2]
[366226193,1750135855125,-1550.51,0.00016793,2]
[366226194,1750135855136,-490.0,0.00016793,2]
[366226195,1750135855146,-206.26148,0.00016793,2]
[366226196,1750135855156,-150.0,0.00016795,2]
[366226197,1750135855166,-151.0,0.00016796,2]
[366226198,1750135855176,-151.0,0.00016796,2]
[366226199,1750135855186,-151.0,0.00016796,2]
[366226200,1750135855200,-151.489198,0.00016796,2]
[366226201,1750135855210,-151.0,0.00016796,2]
[366226202,1750135855220,-151.0,0.00016796,2]
[366226203,1750135855229,-153.161521,0.00016796,2]
[366226204,1750135855239,-265.094562,0.00016796,2]
[366226205,1750135855248,-265.094562,0.00016796,2]
[366226206,1750135855259,-151.0,0.00016796,2]
[366226207,1750135855269,-151.0,0.00016796,2]
[366226208,1750135855278,-488.74,0.00016796,2]
[366226209,1750135855289,-490.0,0.00016796,2]
[366226210,1750135855300,-490.0,0.00016796,2]
[366226211,1750135855310,-490.0,0.00016796,2]
[366226212,1750135855332,-490.0,0.00016796,2]
[366226213,1750135855342,-490.0,0.00016796,2]
[366226214,1750135855352,-490.0,0.00016796,2]
[366226215,1750135855362,-184.277914,0.00016796,2]
[366226216,1750135855375,-243.666429,0.00016796,2]
[366226217,1750135855386,-151.0,0.00016796,2]
[366226218,1750135855396,-490.0,0.00016796,2]
[366226219,1750135855406,-243.666429,0.00016796,2]
[366226220,1750135855416,-490.0,0.00016796,2]
[366226221,1750135855426,-503.13899013,0.00016796,2]
[366226222,1750135855436,-490.0,0.00016796,2]
[366226223,1750135855449,-490.0,0.00016796,2]
[366226224,1750135855459,-490.0,0.00016796,2]
[366226225,1750135855469,-490.0,0.00016796,2]
[366226226,1750135855481,-490.0,0.00016796,2]
[366226227,1750135855491,-490.0,0.00016796,2]
[366226228,1750135855501,-151.0,0.00016796,2]
[366226229,1750135855512,-3561.338419,0.00016796,2]
[366226230,1750135855521,-490.0,0.00016796,2]
[366226231,1750135855531,-3561.338419,0.00016796,2]
[366226232,1750135855540,-3561.338419,0.00016796,2]
[366226233,1750135855550,-3561.338419,0.00016796,2]
[366226234,1750135855559,-490.0,0.00016796,2]
[366226235,1750135855569,-155.988128,0.00016796,2]
[366226236,1750135855578,-490.0,0.00016796,2]
[366226237,1750135855588,-1087.951117,0.00016796,2]
[366226238,1750135855598,-548.67259938,0.00016796,2]
[366226239,1750135855608,-1087.951117,0.00016796,2]
[366226240,1750135855618,-420.795867,0.00016796,2]
[366226241,1750135855627,-237.4440124,0.00016796,2]
[366226242,1750135855637,-151.0,0.00016796,2]
[366226243,1750135855647,-151.0,0.00016796,2]
[366226244,1750135855657,-506.997698,0.00016796,2]
[366226245,1750135855667,-151.0,0.00016796,2]
[366226246,1750135855676,-151.0,0.00016796,2]
[366226247,1750135855686,-506.997698,0.00016796,2]
[366226248,1750135855698,-151.0,0.00016796,2]
[366226249,1750135855707,-151.0,0.00016796,2]
[366226250,1750135855718,-490.0,0.00016796,2]
[366226251,1750135855729,-490.0,0.00016796,2]
[366226252,1750135855739,-490.0,0.00016796,2]
[366226253,1750135855749,-151.453663,0.00016796,2]
[366226254,1750135855765,-151.0,0.00016796,2]
[366226255,1750135855775,-490.0,0.00016796,2]
[366226256,1750135855785,-490.0,0.00016796,2]
[366226257,1750135855795,-490.0,0.00016796,2]
[366226258,1750135855805,-151.0,0.00016796,2]
[366226259,1750135855815,-151.0,0.00016796,2]
[366226260,1750135855825,-490.0,0.00016796,2]
[366226261,1750135855835,-151.0,0.00016796,2]
[366226262,1750135855846,-629.91,0.00016796,2]
[366226263,1750135855856,-151.0,0.00016796,2]
[366226264,1750135855867,-196.89964,0.00016796,2]
[366226265,1750135855877,-196.89964,0.00016796,2]
[366226266,1750135855886,-151.0,0.00016796,2]
[366226267,1750135855897,-490.0,0.00016796,2]
[366226268,1750135855908,-196.89964,0.00016796,2]
[366226269,1750135855918,-196.89964,0.00016796,2]
[366226270,1750135855928,-151.0,0.00016796,2]
[366226271,1750135855939,-151.0,0.00016796,2]
[366226272,1750135855950,-266.736414,0.00016796,2]
[366226273,1750135855960,-151.0,0.00016796,2]
[366226274,1750135855970,-151.850317,0.00016796,2]
[366226275,1750135855979,-151.0,0.00016796,2]
[366226276,1750135855989,-151.0,0.00016796,2]
[366226277,1750135855999,-151.0,0.00016796,2]
[366226278,1750135856009,-161.799364,0.00016796,2]
[366226279,1750135856019,-301.884925,0.00016796,2]
[366226280,1750135856030,-151.0,0.00016796,2]
[366226281,1750135856040,-151.0,0.00016796,2]
[366226282,1750135856051,-151.0,0.00016796,2]
[366226283,1750135856061,-174.638707,0.00016796,2]
[366226284,1750135856071,-151.0,0.00016796,2]
[366226285,1750135856081,-151.0,0.00016796,2]
[366226286,1750135856091,-151.0,0.00016796,2]
[366226287,1750135856102,-151.0,0.00016796,2]
[366226288,1750135856111,-151.0,0.00016796,2]
[366226289,1750135856121,-151.0,0.00016796,2]
[366226290,1750135856132,-151.0,0.00016796,2]
[366226291,1750135856142,-151.0,0.00016796,2]
[366226292,1750135856152,-295.190346,0.00016796,2]
[366226293,1750135856162,-151.0,0.00016796,2]
[366226294,1750135856172,-151.0,0.00016796,2]
[366226295,1750135856182,-151.0,0.00016796,2]
[366226296,1750135856194,-231.243069,0.00016796,2]
[366226297,1750135856204,-151.0,0.00016796,2]
[366226298,1750135856220,-151.0,0.00016796,2]
[366226299,1750135856231,-207.200911,0.00016796,2]
[366226300,1750135856240,-207.200911,0.00016796,2]
[366226301,1750135856250,-207.200911,0.00016796,2]
[366226302,1750135856260,-207.200911,0.00016796,2]
[366226303,1750135856270,-151.0,0.00016796,2]
[366226304,1750135856281,-151.0,0.00016796,2]
[366226305,1750135856295,-151.0,0.00016796,2]
[366226306,1750135856305,-151.0,0.00016796,2]
[366226307,1750135856315,-260.779397,0.00016796,2]
[366226308,1750135856325,-260.779397,0.00016796,2]
[366226309,1750135856335,-260.779397,0.00016796,2]
[366226310,1750135856345,-260.779397,0.00016796,2]
[366226311,1750135856356,-191.094806,0.00016796,2]
[366226312,1750135856366,-176.672159,0.00016796,2]
[366226313,1750135856377,-176.672159,0.00016796,2]
[366226314,1750135856388,-176.672159,0.00016796,2]
[366226315,1750135856398,-176.672159,0.00016796,2]
[366226316,1750135856408,-298.578164,0.00016796,2]
[366226317,1750135856418,-151.0,0.00016796,2]
[366226318,1750135856428,-280.45334,0.00016796,2]
[366226319,1750135856438,-151.0,0.00016796,2]
[366226320,1750135856448,-348.68942,0.00016796,2]
[366226321,1750135856458,-348.68942,0.00016796,2]
[366226322,1750135856468,-348.68942,0.00016796,2]
[366226323,1750135856479,-348.68942,0.00016796,2]
[366226324,1750135856489,-511.03593,0.00016796,2]
[366226325,1750135856500,-511.03593,0.00016796,2]
[366226326,1750135856511,-206.26148,0.00016796,2]
[366226327,1750135856521,-1169.7885028,0.00016797,2]
[366226328,1750135856531,-150.0,0.00016798,2]
[366226329,1750135856542,-150.0,0.00016802,2]
[366226330,1750135856553,-150.0,0.00016803,2]
[366226331,1750135856562,-30.9181206,0.00016812,2]
[366226332,1750135871620,200.0,0.0001461,2]
[366226334,1750135920926,500.0,0.00015068,2]
[366226335,1750135925314,436.39,0.00013699,2]
[366226337,1750136138436,500.0,0.00015068,2]
[366226338,1750136229524,500.0,0.00015241,2]
[366226340,1750136292016,200.0,0.0001505,2]
[366226341,1750136331904,295.06,0.0001549,2]
[366226342,1750136373802,3295.63,0.00015382,2]
[366226343,1750136379991,238.07,0.00015229,2]
[366226344,1750136440615,23900.0,0.00015286,2]
[366226346,1750136492926,150.0,0.00015493,4]
[366226347,1750136651885,200.0,0.00014561,2]
[366226348,1750136652149,200.0,0.00015083,2]
[366226349,1750136706586,150.0,0.00015288,2]
[366226350,1750136713199,150.0,0.00015288,2]
[366226351,1750136883126,1049.2,0.00015361,2]
[366226352,1750136940628,401.88,0.00015353,2]
[366226354,1750137011834,200.0,0.00014605,2]
[366226355,1750137013135,200.0,0.00015139,2]
[366226357,1750137032585,-165.34,0.00015653,2]
[366226358,1750137032596,-296.99081884,0.00015665,2]
[366226359,1750137032693,-48.70918116,0.00015665,2]
[366226360,1750137032703,-200.0,0.00015673,3]
[366226361,1750137032718,-1200.0,0.00015726,2]
[366226362,1750137032728,-58.38163816,0.00015727,2]
[366226482,1750137040778,-5456.69443183,0.00015727,2]
[366226484,1750137040838,-1845.88556817,0.00015727,2]
[366226485,1750137040848,-1000.0,0.00015727,2]
[366226487,1750137040858,-155.24,0.00015727,2]
[366226489,1750137040868,-493.71,0.00015727,2]
[366226490,1750137040878,-666.0,0.00015727,2]
[366226491,1750137040887,-250.0,0.00015727,2]
[366226493,1750137040897,-155.24,0.00015734,2]
[366226495,1750137040907,-155.24,0.0001574,2]
[366226496,1750137040917,-155.24,0.00015747,2]
[366226499,1750137040927,-155.24,0.00015754,2]
[366226501,1750137040937,-155.24,0.0001576,2]
[366226503,1750137040946,-155.24,0.00015767,2]
[366226504,1750137040956,-155.24,0.00015773,2]
[366226507,1750137040967,-155.24,0.0001578,2]
[366226509,1750137040977,-155.24,0.00015786,2]
[366226511,1750137040986,-155.24,0.00015793,2]
[366226513,1750137040996,-155.24,0.00015799,2]
[366226515,1750137041006,-155.24,0.00015806,2]
[366226517,1750137041016,-2029.52,0.00015853,2]
[366226519,1750137041025,-150.0,0.00015854,2]
[366226521,1750137041035,-206.4332652,0.00016,2]
[366226523,1750137041045,-206.4332652,0.00016,2]
[366226525,1750137041055,-206.4332652,0.00016025,2]
[366226527,1750137041065,-206.4332652,0.00016088,2]
[366226529,1750137041074,-151.0,0.00016107,2]
[366226531,1750137041084,-207.4,0.00016107,2]
[366226533,1750137041094,-206.4332652,0.0001615,2]
[366226535,1750137041104,-500.0,0.00016164,2]
[366226537,1750137041114,-193.84,0.00016164,2]
[366226538,1750137041123,-500.0,0.00016192,2]
[366226541,1750137041133,-200.0,0.00016207,4]
[366226542,1750137041143,-206.4332652,0.00016213,2]
[366226545,1750137041155,-206.4332652,0.00016275,2]
[366226547,1750137041164,-700.05384328,0.00016299,2]
[366226548,1750137041174,-150.0,0.000163,2]
[366226550,1750137041183,-206.4332652,0.00016338,2]
[366226555,1750137041377,-490.0,0.00016399,2]
[366226556,1750137041398,-490.0,0.00016399,2]
[366226557,1750137041408,-699.75,0.00016399,2]
[366226558,1750137041418,-490.0,0.00016399,2]
[366226559,1750137041430,-600.68,0.00016399,2]
[366226560,1750137041440,-490.0,0.00016399,2]
[366226561,1750137041450,-490.0,0.00016399,2]
[366226562,1750137041460,-680.87,0.00016399,2]
[366226563,1750137041470,-490.0,0.00016399,2]
[366226564,1750137041480,-490.0,0.00016399,2]
[366226565,1750137041490,-490.0,0.00016399,2]
[366226566,1750137041500,-490.0,0.00016399,2]
[366226567,1750137041510,-385.36311597,0.00016399,2]
[366226568,1750137041523,-104.63688403,0.00016399,2]
[366226569,1750137041534,-490.0,0.00016399,2]
[366226570,1750137041544,-490.0,0.00016399,2]
[366226571,1750137041553,-551.18,0.00016399,2]
[366226572,1750137041563,-450.94,0.00016399,2]
[366226573,1750137041573,-490.0,0.00016399,2]